[Event "2nd FIDE WCC Rapid G12"]
[Site "Minsk"]
[Date "2018.06.22"]
[Round "1"]
[White "Dallemura, Anna"]
[Black "Gaal, Zsoka"]
[Result "0-1"]
[ECO "B03"]
[WhiteElo "1350"]
[BlackElo "2060"]
[Annotator "NA RC"]
[PlyCount "188"]
[EventDate "2018.06.22"]
[EventType "rapid"]
[EventCountry "BLR"]
[SourceTitle "playchess.com"]
[Source "ChessBase"]
[SourceQuality "1"]
[TimeControl "600+5"]

1. e4 {[%emt 0:00:00]} Nf6 {[%emt 0:00:03]} 2. e5 {[%emt 0:00:00]} Nd5 {[%emt 0:00:01]} 3. d4 {[%emt 0:00:01]} d6 {[%emt 0:00:01]} 4. Bc4 {[%emt 0:00:03]} c6 {[%emt 0:00:29]} 5. Qf3 {[%emt 0:00:56]} dxe5 {[%emt 0:00:57] B03: Alekhine's Defence: Four Pawns Attack} 6. dxe5 {[%emt 0:00:51]} e6 {[%emt 0:00:38]} 7. Ne2 {[%emt 0:00:38]} (7. Qg3 $14 Nd7 8. Nf3 Nb4 9. Na3 b5 10. Be2 Nb6 11. O-O Bb7 12. Rd1 Qc7 13. b3 {0-1 (60) Al Argha,H (2263)-Puranen,J (2241) Finland 2017}) 7... Nd7 $146 {[%emt 0:00:54]} ({Predecessor:} 7... Qc7 8. Qg3 Nd7 9. f4 b5 10. Bb3 Nc5 11. O-O Nxb3 12. axb3 Bb7 13. f5 exf5 14. Rxf5 {1-0 (48) Ceranic,M (2110)-Djokovic,M Sutomore 2004}) 8. Bf4 {[%emt 0:00:46]} Nxf4 {[%emt 0:00:29]} 9. Qxf4 {[%emt 0:00:13]} Qa5+ {[%emt 0:00:16]} 10. Nbc3 {[%emt 0:00:55]} Qxe5 {[%emt 0:00:32]} 11. O-O-O {[%emt 0:00:55]} Qxf4+ {[%emt 0:00:25]} 12. Nxf4 {[%emt 0:00:05]} Be7 {[%emt 0:00:39]} 13. h4 {[%emt 0:01:46]} Nb6 {[%emt 0:00:45]} 14. Bb3 {[%emt 0:00:35]} O-O {[%emt 0:00:49]} 15. g3 {[%emt 0:00:42]} Nd5 {[%emt 0:01:07]} 16. Ncxd5 {[%emt 0:00:33]} exd5 {[%emt 0:00:30]} 17. c3 {[%emt 0:00:42]} Bg4 {[%emt 0:00:07]} 18. Rd2 {[%emt 0:00:18]} Bd6 {[%emt 0:00:21]} 19. Rg1 {[%emt 0:00:30]} Bxf4 {[%emt 0:01:02]} 20. gxf4 {[%emt 0:00:02]} Bf3 {[%emt 0:00:04]} 21. Rg3 {[%emt 0:00:16]} Bh5 {[%emt 0:00:21]} 22. f3 {[%emt 0:00:27]} Rfe8 {[%emt 0:00:53]} 23. Rf2 {[%emt 0:00:16]} (23. Rdg2 $17 {keeps fighting.}) 23... Re3 {[%emt 0:00:19]} 24. Kd2 {[%emt 0:00:04]} Rae8 {[%emt 0:00:02]} 25. Bd1 {[%emt 0:00:05]} Bg6 {[%emt 0:00:08]} 26. Rfg2 {[%emt 0:00:17]} Rd3+ {[%emt 0:00:10]} 27. Kc1 {[%emt 0:00:02]} Re1 {[%emt 0:00:05]} 28. Rd2 {[%emt 0:00:12]} Rxd2 {[%emt 0:00:03]} 29. Kxd2 {[%emt 0:00:01]} Re7 {[%emt 0:00:03]} 30. Rg2 {[%emt 0:00:08]} Bf5 {[%emt 0:00:03]} 31. Rg5 {[%emt 0:00:04]} Bb1 {[%emt 0:00:07]} 32. Kc1 {[%emt 0:00:02]} Bd3 {[%emt 0:00:08]} 33. Kd2 {[%emt 0:00:03]} Bb5 {[%emt 0:00:06]} 34. h5 {[%emt 0:00:07]} Kf8 {[%emt 0:00:04]} 35. Rg2 {[%emt 0:00:06]} g6 {[%emt 0:00:05]} 36. hxg6 {[%emt 0:00:04]} hxg6 {[%emt 0:00:01]} 37. Rh2 {[%emt 0:00:03]} Kg7 {[%emt 0:00:01]} 38. Rg2 {[%emt 0:00:01]} Kf6 {[%emt 0:00:02]} 39. Bc2 {[%emt 0:00:04]} Re8 {[%emt 0:00:07]} 40. Rh2 {[%emt 0:00:07]} Kg7 {[%emt 0:00:10]} 41. f5 {[%emt 0:00:10]} gxf5 {[%emt 0:00:09]} 42. Bxf5 {[%emt 0:00:02]} Kf6 {[%emt 0:00:03]} 43. Bc2 {[%emt 0:00:03]} Rg8 {[%emt 0:00:08]} 44. Rh6+ {[%emt 0:00:04]} Ke7 {[%emt 0:00:01]} 45. Rh2 {[%emt 0:00:09]} Rg3 {[%emt 0:00:03]} 46. Rf2 {[%emt 0:00:01]} Kf6 {[%emt 0:00:06]} 47. Ke3 {[%emt 0:00:06]} Rg1 {[%emt 0:00:05]} 48. Kd2 {[%emt 0:00:04]} Kg5 {[%emt 0:00:12]} 49. a4 {[%emt 0:00:07]} Ba6 {[%emt 0:00:05]} 50. Rh2 {[%emt 0:00:11]} Kf4 {[%emt 0:00:06]} 51. Rh7 {[%emt 0:00:08]} Rg2+ {[%emt 0:00:02]} 52. Kc1 {[%emt 0:00:02]} f6 {[%emt 0:00:07]} 53. Rf7 {[%emt 0:00:02]} Kxf3 {[%emt 0:00:03]} 54. Rxf6+ {[%emt 0:00:03]} Ke3 {[%emt 0:00:07]} 55. Re6+ {[%emt 0:00:02]} Kf2 {[%emt 0:00:07]} 56. Rf6+ {[%emt 0:00:04]} Ke1 {[%emt 0:00:02]} 57. Re6+ {[%emt 0:00:10]} Kf2 {[%emt 0:00:06]} 58. Rf6+ {[%emt 0:00:02]} Ke3 {[%emt 0:00:02]} 59. Re6+ {[%emt 0:00:02]} Kf2 {[%emt 0:00:06]} 60. Rf6+ {[%emt 0:00:01]} Ke1 {[%emt 0:00:01]} 61. Re6+ {[%emt 0:00:02]} Re2 {[%emt 0:00:02]} 62. Rxe2+ {[%emt 0:00:06]} Kxe2 {[%emt 0:00:01]} 63. Bf5 {[%emt 0:00:05]} c5 {[%emt 0:00:16]} 64. Bg4+ {[%emt 0:00:11]} Ke3 {[%emt 0:00:07]} 65. Kd1 {[%emt 0:00:10]} d4 {[%emt 0:00:02]} 66. cxd4 {[%emt 0:00:01]} cxd4 {[%emt 0:00:01]} 67. b4 {[%emt 0:00:04]} Bc4 {[%emt 0:00:05]} 68. a5 {[%emt 0:00:05]} Bb3+ {[%emt 0:00:08]} 69. Kc1 {[%emt 0:00:19]} d3 {[%emt 0:00:02]} 70. Kb2 {[%emt 0:00:06]} Ba4 {[%emt 0:00:04]} 71. Ka3 {[%emt 0:00:04]} Bc2 {[%emt 0:00:02]} 72. Kb2 {[%emt 0:00:01]} Kd2 {[%emt 0:00:13]} 73. b5 {[%emt 0:00:03]} b6 {[%emt 0:00:07]} 74. axb6 {[%emt 0:00:04]} axb6 {[%emt 0:00:01]} 75. Bf3 {[%emt 0:00:04]} Ba4 {[%emt 0:00:06]} 76. Bc6 {[%emt 0:00:04]} Ke1 {[%emt 0:00:03]} 77. Be4 {[%emt 0:00:14]} d2 {[%emt 0:00:03]} 78. Bf3 {[%emt 0:00:01]} d1=Q {[%emt 0:00:08]} 79. Bxd1 {[%emt 0:00:01]} Kxd1 {[%emt 0:00:06]} 80. Kc3 {[%emt 0:00:01]} Bxb5 {[%emt 0:00:03]} 81. Kb4 {[%emt 0:00:01]} Bc6 {[%emt 0:00:03]} 82. Kc4 {[%emt 0:00:03]} Kd2 {[%emt 0:00:06]} 83. Kd4 {[%emt 0:00:02]} b5 {[%emt 0:00:05]} 84. Kc5 {[%emt 0:00:03]} Ke3 {[%emt 0:00:02]} 85. Kb4 {[%emt 0:00:02]} Kd4 {[%emt 0:00:01]} 86. Kb3 {[%emt 0:00:02]} Kc5 {[%emt 0:00:02]} 87. Kc3 {[%emt 0:00:02]} Bd5 {[%emt 0:00:02]} 88. Kb2 {[%emt 0:00:03]} b4 {[%emt 0:00:02]} 89. Kc2 {[%emt 0:00:02]} Kc4 {[%emt 0:00:05]} 90. Kb2 {[%emt 0:00:01]} b3 {[%emt 0:00:02]} 91. Kb1 {[%emt 0:00:02]} Kc3 {[%emt 0:00:03]} 92. Kc1 {[%emt 0:00:02]} Be4 {[%emt 0:00:02]} 93. Kd1 {[%emt 0:00:02]} b2 {[%emt 0:00:02]} 94. Ke2 {[%emt 0:00:01]} b1=Q {[%emt 0:00:08]} 0-1

[Event "2nd FIDE WCC Rapid G12"]
[Site "Minsk"]
[Date "2018.06.22"]
[Round "1"]
[White "Apostolakii, Irina"]
[Black "Zavivaeva, Emilia"]
[Result "0-1"]
[ECO "C00"]
[WhiteElo "1296"]
[BlackElo "1556"]
[Annotator "NA RC"]
[PlyCount "64"]
[EventDate "2018.06.22"]
[EventType "rapid"]
[EventCountry "BLR"]
[SourceTitle "playchess.com"]
[Source "ChessBase"]
[SourceQuality "1"]
[TimeControl "600+5"]

1. e4 {[%emt 0:00:00]} e6 {[%emt 0:00:05]} 2. Nc3 {[%emt 0:00:02]} d5 {[%emt 0:00:02]} 3. exd5 {[%emt 0:00:05]} exd5 {[%emt 0:00:02]} 4. d4 {[%emt 0:00:03]} Be6 {[%emt 0:00:18]} 5. Nf3 {[%emt 0:00:05]} h6 {[%emt 0:00:04]} 6. Bd3 {[%emt 0:00:16]} c6 {[%emt 0:00:04]} 7. O-O {[%emt 0:00:05]} Bd6 {[%emt 0:00:02]} 8. Be3 {[%emt 0:00:11]} Nd7 {[%emt 0:00:14]} 9. h3 {[%emt 0:00:06]} Qf6 {[%emt 0:00:02]} 10. Nh2 {[%emt 0:01:02]} g5 {[%emt 0:00:49]} 11. Qf3 {[%emt 0:00:55]} Qg7 {[%emt 0:00:19]} 12. Kh1 {[%emt 0:00:50]} O-O-O {[%emt 0:01:08]} 13. Bf5 {[%emt 0:00:23]} h5 {[%emt 0:01:00]} 14. Bxe6 {[%emt 0:00:59]} fxe6 {[%emt 0:00:02]} 15. g3 {[%emt 0:00:08]} g4 {[%emt 0:00:22]} 16. hxg4 {[%emt 0:00:49]} hxg4 {[%emt 0:00:03]} 17. Qg2 {[%emt 0:00:04]} Ne7 {[%emt 0:00:38]} 18. Kg1 {[%emt 0:00:19]} Nf5 {[%emt 0:00:09]} 19. Rad1 {[%emt 0:00:18]} Rh5 {[%emt 0:00:16]} 20. f3 {[%emt 0:02:02]} Nxe3 {[%emt 0:00:11]} 21. Qe2 {[%emt 0:00:07]} Nxd1 {[%emt 0:00:15]} 22. Qxd1 {[%emt 0:00:02]} Rdh8 {[%emt 0:00:15]} 23. Nxg4 {[%emt 0:00:13]} Nf6 {[%emt 0:00:24]} 24. Kf2 {[%emt 0:00:24]} Nxg4+ {[%emt 0:00:10]} 25. fxg4 {[%emt 0:00:01]} Rh2+ {[%emt 0:00:01]} 26. Ke1 {[%emt 0:00:07]} Bxg3+ {[%emt 0:00:03]} 27. Rf2 {[%emt 0:00:05]} Bxf2+ {[%emt 0:00:03]} 28. Kd2 {[%emt 0:00:08]} Bxd4+ {[%emt 0:00:03]} 29. Kc1 {[%emt 0:00:01]} Bxc3 {[%emt 0:00:09]} 30. bxc3 {[%emt 0:00:19]} Qxc3 {[%emt 0:00:02]} 31. Kb1 {[%emt 0:00:25]} Rh1 {[%emt 0:00:05]} 32. Qxh1 {[%emt 0:00:03]} Rxh1# {[%emt 0:00:02]} 0-1

[Event "2nd FIDE WCC Rapid G12"]
[Site "Minsk"]
[Date "2018.06.22"]
[Round "1"]
[White "Sergejeva, Sofija"]
[Black "Lomakina, Anzhelika"]
[Result "0-1"]
[ECO "C54"]
[WhiteElo "1231"]
[BlackElo "1627"]
[Annotator "NA RC"]
[PlyCount "80"]
[EventDate "2018.06.22"]
[EventType "rapid"]
[EventCountry "BLR"]
[SourceTitle "playchess.com"]
[Source "ChessBase"]
[SourceQuality "1"]
[TimeControl "600+5"]

1. e4 {[%emt 0:00:00]} e5 {[%emt 0:00:01]} 2. Nf3 {[%emt 0:00:00]} Nc6 {[%emt 0:00:01]} 3. Bc4 {[%emt 0:00:00]} Bc5 {[%emt 0:00:02]} 4. c3 {[%emt 0:00:02]} Nf6 {[%emt 0:00:01]} 5. d3 {[%emt 0:00:01]} O-O {[%emt 0:00:02]} 6. O-O {[%emt 0:00:03]} d5 {[%emt 0:00:02]} 7. exd5 {[%emt 0:00:07]} Nxd5 {[%emt 0:00:01]} 8. Re1 {[%emt 0:00:44]} Bg4 {[%emt 0:00:04]} 9. h3 {[%emt 0:00:56]} Bh5 {[%emt 0:00:04]} 10. Be3 {[%emt 0:00:34]} Bxe3 {[%emt 0:02:04]} 11. fxe3 {[%emt 0:00:09]} Re8 {[%emt 0:00:24]} 12. Nbd2 {[%emt 0:00:47]} Na5 {[%emt 0:00:55]} 13. Bb5 {[%emt 0:00:24]} c6 {[%emt 0:00:11]} 14. Ba4 {[%emt 0:00:02]} b5 {[%emt 0:00:07]} 15. Bc2 {[%emt 0:00:02]} Qb6 {[%emt 0:00:41]} 16. d4 {[%emt 0:00:31]} exd4 {[%emt 0:00:28]} 17. exd4 {[%emt 0:00:15]} Re3 {[%emt 0:01:58]} 18. Qb1 {[%emt 0:01:31]} Bg6 {[%emt 0:01:34]} 19. Bxg6 {[%emt 0:01:54]} hxg6 {[%emt 0:00:10]} 20. Rxe3 Nxe3 {[%emt 0:00:06]} 21. Qe4 {[%emt 0:01:03]} Nf5 {[%emt 0:01:26]} 22. Ng5 {[%emt 0:00:57]} Qc7 {[%emt 0:00:43]} 23. Re1 {[%emt 0:00:40]} Qd8 {[%emt 0:00:30]} 24. Ngf3 {[%emt 0:00:50]} Rc8 {[%emt 0:00:13]} 25. b4 {[%emt 0:00:18]} Nb7 {[%emt 0:00:04]} 26. a3 {[%emt 0:00:06]} Nbd6 {[%emt 0:00:12]} 27. Qe2 {[%emt 0:00:10]} Qf6 {[%emt 0:00:05]} 28. Ne4 {[%emt 0:00:06]} Qd8 {[%emt 0:00:04]} 29. Nxd6 {[%emt 0:00:03]} Qxd6 {[%emt 0:00:02]} 30. Qd3 {[%emt 0:00:04]} Qg3 {[%emt 0:00:03]} 31. Qe2 {[%emt 0:00:05]} Nh4 {[%emt 0:00:09]} 32. Qf2 {[%emt 0:00:02]} Nxf3+ {[%emt 0:00:01]} 33. Qxf3 {[%emt 0:00:03]} Qxe1+ {[%emt 0:00:01]} 34. Kh2 {[%emt 0:00:02]} Qe6 {[%emt 0:00:04]} 35. Qd3 {[%emt 0:00:03]} Qd6+ {[%emt 0:00:04]} 36. Kg1 {[%emt 0:00:02]} Re8 {[%emt 0:00:02]} 37. Qd2 {[%emt 0:00:04]} Qg3 {[%emt 0:00:05]} 38. Kf1 {[%emt 0:00:05]} Qe3 {[%emt 0:00:04]} 39. Qxe3 {[%emt 0:00:08]} Rxe3 {[%emt 0:00:01]} 40. Kf2 {[%emt 0:00:02]} Rxc3 {[%emt 0:00:01]} 0-1

[Event "2nd FIDE WCC Rapid G12"]
[Site "Minsk"]
[Date "2018.06.22"]
[Round "2"]
[White "Gaal, Zsoka"]
[Black "Varekha, Anna"]
[Result "1-0"]
[ECO "A06"]
[WhiteElo "2060"]
[BlackElo "1446"]
[Annotator "NA RC"]
[PlyCount "55"]
[EventDate "2018.06.22"]
[EventType "rapid"]
[EventCountry "BLR"]
[SourceTitle "playchess.com"]
[Source "ChessBase"]
[SourceQuality "1"]
[TimeControl "600+5"]

1. Nf3 {[%emt 0:00:00]} d5 {[%emt 0:00:02]} 2. g3 {[%emt 0:00:00]} Bf5 {[%emt 0:00:04]} 3. Bg2 {[%emt 0:00:10]} e6 {[%emt 0:00:16]} 4. c4 {[%emt 0:00:27]} c6 {[%emt 0:00:06]} 5. cxd5 cxd5 {[%emt 0:00:42]} 6. O-O {[%emt 0:00:31]} Nf6 {[%emt 0:00:06]} 7. d3 {[%emt 0:00:06] A11: English Opening: 1...c6} (7. Qb3 Qb6 8. Qxb6 axb6 9. d3 Nc6 10. Nc3 Bg4 11. Bd2 Bc5 12. h3 Bxf3 13. Bxf3 Ke7 14. Rfc1 Ra6 15. Nb5 Kd7 16. e3 Rc8 17. a3 Raa8 18. Kg2 {0-1 (57) Jumabayev,R (2621)-Akobian,V (2647) Saint Louis 2018}) 7... Be7 {[%emt 0:00:09]} 8. Qb3 {[%emt 0:01:57]} Qd7 {[%emt 0:02:06]} 9. Bf4 {[%emt 0:01:36]} Nc6 {[%emt 0:00:21]} 10. Nc3 {[%emt 0:00:40]} O-O {[%emt 0:00:34]} 11. e4 {[%emt 0:02:41]} dxe4 {[%emt 0:03:01]} 12. dxe4 {[%emt 0:00:01]} Nxe4 {[%emt 0:00:44]} 13. Nxe4 {[%emt 0:00:06]} Bxe4 {[%emt 0:00:02]} 14. Ne5 {[%emt 0:00:08]} Nxe5 {[%emt 0:00:15]} 15. Bxe4 {[%emt 0:00:04]} Bd6 $146 {[%emt 0:00:35] [#]} 16. Rfd1 $1 {[%emt 0:00:43]} ({Inferior is} 16. Qxb7 Qxb7 17. Bxb7 Rab8 $11) 16... f6 {[%emt 0:00:31]} 17. Bxe5 {[%emt 0:01:36]} fxe5 {[%emt 0:00:02]} 18. Qd3 {[%emt 0:00:02]} Rad8 {[%emt 0:00:15]} 19. Bxh7+ {[%emt 0:00:20]} Kh8 {[%emt 0:00:02]} 20. Qe4 {[%emt 0:00:14]} Qf7 {[%emt 0:00:13]} 21. Rf1 {[%emt 0:00:13]} Bc5 $2 {[%emt 0:00:37]} (21... Qf3 $14) 22. Bg6 {[%emt 0:00:05]} Qf6 {[%emt 0:00:16] [#]} 23. Qg4 $1 {[%emt 0:00:06]} Bxf2+ $2 {[%emt 0:00:15]} (23... Kg8 24. Qh5 Rf7) 24. Kg2 {[%emt 0:00:01]} Kg8 {[%emt 0:00:44]} 25. Qh5 {[%emt 0:00:05]} Rfe8 {[%emt 0:00:04]} 26. Bxe8 {[%emt 0:00:06]} Rd2 {[%emt 0:00:06]} 27. Qf7+ {[%emt 0:00:07]} Qxf7 $18 {[%emt 0:00:02]} 28. Bxf7+ {[%emt 0:00:01]} 1-0

[Event "2nd FIDE WCC Rapid G12"]
[Site "Minsk"]
[Date "2018.06.22"]
[Round "2"]
[White "Alekseenko, Mariya"]
[Black "Fedoricheva, Ekaterina"]
[Result "0-1"]
[ECO "A04"]
[WhiteElo "1763"]
[BlackElo "1544"]
[Annotator "NA RC"]
[PlyCount "100"]
[EventDate "2018.06.22"]
[EventType "rapid"]
[EventCountry "BLR"]
[SourceTitle "playchess.com"]
[Source "ChessBase"]
[SourceQuality "1"]
[TimeControl "600+5"]

1. Nf3 {[%emt 0:00:00]} c5 {[%emt 0:00:02]} 2. g3 {[%emt 0:00:00]} d6 {[%emt 0:00:01]} 3. Bg2 {[%emt 0:00:00]} Nf6 {[%emt 0:00:01]} 4. O-O {[%emt 0:00:01]} Nc6 {[%emt 0:00:02]} 5. c4 {[%emt 0:00:01]} e6 {[%emt 0:00:02]} 6. Nc3 {[%emt 0:00:01]} Be7 {[%emt 0:00:01]} 7. d3 {[%emt 0:00:03]} O-O {[%emt 0:00:03]} 8. Rb1 {[%emt 0:00:01]} a6 {[%emt 0:00:06]} 9. a3 {[%emt 0:00:01]} h6 {[%emt 0:00:04]} 10. b4 {[%emt 0:00:04]} cxb4 {[%emt 0:00:05]} 11. axb4 {[%emt 0:00:00]} Bd7 {[%emt 0:00:22]} 12. b5 {[%emt 0:00:02]} axb5 {[%emt 0:00:01]} 13. Nxb5 {[%emt 0:00:02]} d5 {[%emt 0:00:19]} 14. Qb3 {[%emt 0:01:25]} Na5 {[%emt 0:00:43]} 15. Qc2 {[%emt 0:00:01]} Bxb5 {[%emt 0:00:17]} 16. Rxb5 {[%emt 0:00:19]} dxc4 {[%emt 0:00:08]} 17. dxc4 {[%emt 0:00:03]} Qc7 {[%emt 0:01:11]} 18. Bf4 {[%emt 0:00:20]} Qxc4 {[%emt 0:00:36]} 19. Qxc4 {[%emt 0:00:00]} Nxc4 {[%emt 0:00:01]} 20. Rxb7 {[%emt 0:00:01]} Bd6 {[%emt 0:00:03]} 21. Bxd6 {[%emt 0:00:38]} Nxd6 {[%emt 0:00:01]} 22. Rb6 {[%emt 0:00:01]} Nc4 {[%emt 0:00:41]} 23. Rc6 {[%emt 0:00:07]} Na5 {[%emt 0:00:07]} 24. Rc5 {[%emt 0:00:02]} Rfc8 {[%emt 0:00:10]} 25. Rfc1 {[%emt 0:00:26]} Rxc5 {[%emt 0:00:16]} 26. Rxc5 {[%emt 0:00:01]} Nb3 {[%emt 0:00:01]} 27. Rb5 {[%emt 0:00:23]} Ra1+ {[%emt 0:00:37]} 28. Bf1 {[%emt 0:00:01]} Nc1 {[%emt 0:00:10]} 29. Kg2 {[%emt 0:00:13]} Nd5 {[%emt 0:00:12]} 30. e4 {[%emt 0:00:32]} Nc3 {[%emt 0:00:10]} 31. Rb8+ {[%emt 0:00:18]} Kh7 {[%emt 0:00:02]} 32. e5 {[%emt 0:00:02]} Ra2 {[%emt 0:00:53]} 33. Bc4 {[%emt 0:00:18]} Rc2 {[%emt 0:00:20]} 34. Ne1 {[%emt 0:02:15]} Rd2 {[%emt 0:00:08]} 35. Nf3 {[%emt 0:00:20]} Rc2 {[%emt 0:00:03]} 36. Ne1 {[%emt 0:00:06]} Rd2 {[%emt 0:00:02]} 37. Rb4 {[%emt 0:00:04]} Ne4 {[%emt 0:01:35]} 38. Nd3 {[%emt 0:00:52]} Nxd3 {[%emt 0:01:16]} 39. Bxd3 {[%emt 0:00:01]} Rxd3 {[%emt 0:00:06]} 40. Rxe4 {[%emt 0:00:01]} Rd5 {[%emt 0:00:02]} 41. Kf3 {[%emt 0:00:03]} h5 {[%emt 0:00:20]} 42. h3 {[%emt 0:00:08]} g5 {[%emt 0:00:11]} 43. h4 {[%emt 0:00:22]} g4+ {[%emt 0:00:19]} 44. Kf4 {[%emt 0:00:01]} Kg6 {[%emt 0:00:01]} 45. Ra4 {[%emt 0:00:08]} f6 {[%emt 0:00:15]} 46. Ra6 {[%emt 0:00:40]} Rxe5 {[%emt 0:00:27]} 47. Rb6 {[%emt 0:00:01]} f5 {[%emt 0:00:04]} 48. f3 {[%emt 0:00:03]} Re1 {[%emt 0:00:09]} 49. fxg4 {[%emt 0:00:07]} hxg4 {[%emt 0:00:07]} 50. Rc6 {[%emt 0:00:04]} Re4# 0-1

[Event "2nd FIDE WCC Rapid G12"]
[Site "Minsk"]
[Date "2018.06.22"]
[Round "2"]
[White "Shubenkova, Veronika"]
[Black "Tarasenka, Aliaksandra"]
[Result "0-1"]
[ECO "A00"]
[WhiteElo "1700"]
[BlackElo "1747"]
[Annotator "NA RC"]
[PlyCount "96"]
[EventDate "2018.06.22"]
[EventType "rapid"]
[EventCountry "BLR"]
[SourceTitle "playchess.com"]
[Source "ChessBase"]
[SourceQuality "1"]
[TimeControl "600+5"]

1. a3 {[%emt 0:00:00]} e5 2. e3 {[%emt 0:00:00]} d5 {[%emt 0:00:39]} 3. d4 {[%emt 0:00:14]} Bd6 {[%emt 0:01:09]} 4. Nf3 {[%emt 0:00:25]} e4 {[%emt 0:00:45]} 5. Nfd2 {[%emt 0:00:27]} f5 {[%emt 0:00:26]} 6. c4 {[%emt 0:00:39]} c6 {[%emt 0:00:27]} 7. Nc3 {[%emt 0:00:17]} Nf6 {[%emt 0:00:27]} 8. Qb3 {[%emt 0:00:28]} Bc7 {[%emt 0:01:27]} 9. cxd5 {[%emt 0:01:13]} cxd5 {[%emt 0:00:20]} 10. Qb5+ {[%emt 0:00:51]} Nc6 {[%emt 0:00:38]} 11. Nb3 {[%emt 0:01:01]} a6 {[%emt 0:01:46]} 12. Qe2 {[%emt 0:00:28]} O-O {[%emt 0:00:15]} 13. Qd1 {[%emt 0:00:33]} b6 {[%emt 0:00:42]} 14. Be2 {[%emt 0:00:05]} Qe8 {[%emt 0:00:28]} 15. Bd2 {[%emt 0:00:26]} Qg6 {[%emt 0:00:24]} 16. g3 {[%emt 0:01:06]} Bd7 {[%emt 0:00:37]} 17. Bf1 {[%emt 0:00:58]} Ra7 {[%emt 0:00:26]} 18. Rc1 {[%emt 0:00:24]} Bd6 {[%emt 0:00:09]} 19. Na4 {[%emt 0:00:20]} Rb8 {[%emt 0:00:15]} 20. Bg2 {[%emt 0:00:28]} Nd8 {[%emt 0:00:07]} 21. Nc3 {[%emt 0:00:08]} Ne6 {[%emt 0:00:05]} 22. Ne2 {[%emt 0:00:16]} Qf7 {[%emt 0:00:11]} 23. O-O {[%emt 0:00:10]} g5 {[%emt 0:00:04]} 24. f4 {[%emt 0:00:29]} Ng4 {[%emt 0:00:08]} 25. Nc3 {[%emt 0:00:12]} Ng7 {[%emt 0:00:07]} 26. Bh3 {[%emt 0:00:06]} gxf4 {[%emt 0:00:02]} 27. Bxg4 {[%emt 0:00:06]} fxg4 {[%emt 0:00:02]} 28. exf4 {[%emt 0:00:02]} h5 {[%emt 0:00:04]} 29. Be1 {[%emt 0:00:02]} Nf5 {[%emt 0:00:02]} 30. Qe2 {[%emt 0:00:03]} Rc8 {[%emt 0:00:09]} 31. Bf2 {[%emt 0:00:10]} Re8 {[%emt 0:00:13]} 32. Be3 {[%emt 0:00:06]} Qf6 {[%emt 0:00:02]} 33. Nxd5 {[%emt 0:00:07]} Qf7 {[%emt 0:00:02]} 34. Qc4 {[%emt 0:00:03]} Be6 {[%emt 0:00:02]} 35. Qc6 {[%emt 0:00:06]} Bxd5 {[%emt 0:00:04]} 36. Qxb6 {[%emt 0:00:01]} Nxe3 {[%emt 0:00:02]} 37. Qxd6 {[%emt 0:00:07]} Nxf1 {[%emt 0:00:09]} 38. Qc5 {[%emt 0:00:13]} Ne3 {[%emt 0:00:08]} 39. Na5 {[%emt 0:00:03]} Nf5 {[%emt 0:00:05]} 40. b4 {[%emt 0:00:13]} e3 {[%emt 0:00:02]} 41. Nc4 {[%emt 0:00:04]} Bxc4 {[%emt 0:00:04]} 42. Rxc4 {[%emt 0:00:05]} e2 {[%emt 0:00:04]} 43. Rc1 {[%emt 0:00:04]} e1=Q+ {[%emt 0:00:04]} 44. Rxe1 {[%emt 0:00:02]} Rxe1+ {[%emt 0:00:01]} 45. Kf2 {[%emt 0:00:01]} Rae7 {[%emt 0:00:06]} 46. Qc8+ {[%emt 0:00:02]} Re8 {[%emt 0:00:03]} 47. Qxa6 {[%emt 0:00:01]} Qa2+ {[%emt 0:00:04]} 48. Qe2 {[%emt 0:00:10]} Qxe2# {[%emt 0:00:02]} 0-1

[Event "2nd FIDE WCC Rapid G12"]
[Site "Minsk"]
[Date "2018.06.22"]
[Round "2"]
[White "Lomakina, Anzhelika"]
[Black "Dubovik, Maria"]
[Result "0-1"]
[ECO "B91"]
[WhiteElo "1627"]
[BlackElo "1408"]
[Annotator "NA RC"]
[PlyCount "84"]
[EventDate "2018.06.22"]
[EventType "rapid"]
[EventCountry "BLR"]
[SourceTitle "playchess.com"]
[Source "ChessBase"]
[SourceQuality "1"]
[TimeControl "600+5"]

1. e4 {[%emt 0:00:00]} c5 {[%emt 0:00:03]} 2. Nf3 {[%emt 0:00:00]} d6 {[%emt 0:00:06]} 3. d4 {[%emt 0:00:00]} cxd4 {[%emt 0:00:04]} 4. Nxd4 {[%emt 0:00:04]} Nf6 {[%emt 0:00:03]} 5. Nc3 {[%emt 0:00:03]} a6 {[%emt 0:00:11]} 6. g3 {[%emt 0:00:16]} e6 {[%emt 0:00:06]} 7. Bg2 {[%emt 0:00:08]} Nbd7 {[%emt 0:00:24]} 8. O-O {[%emt 0:00:16]} Be7 {[%emt 0:00:05]} 9. f4 {[%emt 0:00:31]} O-O {[%emt 0:00:11]} 10. Be3 {[%emt 0:00:49]} Qc7 {[%emt 0:00:05]} 11. g4 {[%emt 0:00:31]} Nc5 {[%emt 0:00:45]} 12. g5 {[%emt 0:00:46]} Nfd7 {[%emt 0:00:53]} 13. Qh5 {[%emt 0:00:25]} g6 {[%emt 0:01:16]} 14. Qh4 {[%emt 0:00:16]} e5 {[%emt 0:01:20]} 15. Nb3 {[%emt 0:01:35]} Nxb3 {[%emt 0:00:30]} 16. axb3 {[%emt 0:00:06]} exf4 {[%emt 0:00:35]} 17. Bxf4 {[%emt 0:00:35]} Ne5 {[%emt 0:00:33]} 18. Nd5 {[%emt 0:00:17]} Qd8 {[%emt 0:01:17]} 19. Bxe5 {[%emt 0:00:37]} dxe5 {[%emt 0:00:10]} 20. Nf6+ {[%emt 0:01:46]} Bxf6 {[%emt 0:00:20]} 21. gxf6 {[%emt 0:00:02]} Kh8 {[%emt 0:00:13]} 22. Rad1 {[%emt 0:00:43]} Qb6+ {[%emt 0:00:13]} 23. Kh1 {[%emt 0:00:04]} Be6 {[%emt 0:00:53]} 24. Rd3 {[%emt 0:00:21]} Rad8 {[%emt 0:00:34]} 25. Rfd1 {[%emt 0:01:02]} Rxd3 {[%emt 0:00:17]} 26. Rxd3 {[%emt 0:00:05]} Qa5 {[%emt 0:00:16]} 27. Bh3 {[%emt 0:00:31]} Bxh3 {[%emt 0:00:20]} 28. Rxh3 {[%emt 0:00:03]} h5 {[%emt 0:00:07]} 29. Qg3 {[%emt 0:00:20]} Rd8 {[%emt 0:00:08]} 30. Rxh5+ {[%emt 0:00:07]} Kg8 {[%emt 0:00:04]} 31. Qg4 {[%emt 0:00:09]} Qe1+ {[%emt 0:00:05]} 32. Kg2 {[%emt 0:00:02]} Rd2+ {[%emt 0:00:04]} 33. Kh3 {[%emt 0:00:07]} Qf1+ {[%emt 0:00:01]} 34. Kh4 {[%emt 0:00:02]} Rxh2+ {[%emt 0:00:02]} 35. Kg3 {[%emt 0:00:02]} Rg2+ {[%emt 0:00:02]} 36. Kh4 {[%emt 0:00:08]} Qh1+ {[%emt 0:00:04]} 37. Qh3 {[%emt 0:00:03]} Rh2 {[%emt 0:00:02]} 38. Kg3 {[%emt 0:00:09]} Rxh3+ {[%emt 0:00:01]} 39. Rxh3 {[%emt 0:00:01]} Qc1 {[%emt 0:00:04]} 40. Rh2 {[%emt 0:00:02]} Qf4+ {[%emt 0:00:02]} 41. Kh3 {[%emt 0:00:04]} Qxe4 {[%emt 0:00:02]} 42. Rd2 {[%emt 0:00:07]} Qe3+ {[%emt 0:00:06]} 0-1